[Event "Late-Titled-Tuesday-Blitz-March-26-2024"]
[Site "Chess.com"]
[Date "2024.03.26"]
[Round "11"]
[White "carokannlover213"]
[Black "jcibarra"]
[Result "0-1"]
[WhiteElo "2830"]
[BlackElo "2988"]
[TimeControl "180+1"]
[EndTime "16:04:36 PDT"]
[Termination "jcibarra won on time"]

1. e4 {[%clk 0:03:00.9]} 1... c5 {[%clk 0:02:58.4]} 2. Nf3 {[%clk 0:03:01.1]}
2... e6 {[%clk 0:02:59]} 3. d4 {[%clk 0:03:01.3]} 3... cxd4 {[%clk 0:02:59.9]}
4. Nxd4 {[%clk 0:03:01.5]} 4... Bc5 {[%clk 0:03:00.5]} 5. Nb3 {[%clk 0:02:56.3]}
5... Bb6 {[%clk 0:03:00.6]} 6. Nc3 {[%clk 0:02:56]} 6... Ne7 {[%clk 0:03:01.2]}
7. Bf4 {[%clk 0:02:55.4]} 7... d5 {[%clk 0:02:57.8]} 8. Bb5+ {[%clk 0:02:42.5]}
8... Nbc6 {[%clk 0:02:57]} 9. exd5 {[%clk 0:02:41.5]} 9... exd5 {[%clk
0:02:56.5]} 10. O-O {[%clk 0:02:42.1]} 10... O-O {[%clk 0:02:56.1]} 11. Ne2
{[%clk 0:02:41.9]} 11... Ng6 {[%clk 0:02:54.7]} 12. Bg3 {[%clk 0:02:39.2]} 12...
f5 {[%clk 0:02:34.7]} 13. Nf4 {[%clk 0:02:32.3]} 13... Nge7 {[%clk 0:02:27.3]}
14. Bh4 {[%clk 0:02:25.1]} 14... h6 {[%clk 0:02:23.1]} 15. Ng6 {[%clk 0:02:03]}
15... Qd6 {[%clk 0:02:01.8]} 16. Nxf8 {[%clk 0:01:39.5]} 16... g5 {[%clk
0:02:01]} 17. Qh5 {[%clk 0:01:13.6]} 17... Kxf8 {[%clk 0:01:50.4]} 18. Bxg5
{[%clk 0:01:07.5]} 18... hxg5 {[%clk 0:01:51.3]} 19. Qh8+ {[%clk 0:00:43.7]}
19... Ng8 {[%clk 0:01:47.3]} 20. Rae1 {[%clk 0:00:40.3]} 20... Bd7 {[%clk
0:01:46.7]} 21. Bxc6 {[%clk 0:00:38.2]} 21... bxc6 {[%clk 0:01:44.8]} 22. Nd4
{[%clk 0:00:31.6]} 22... Qg6 {[%clk 0:01:16.8]} 23. Nf3 {[%clk 0:00:24.7]} 23...
Bc7 {[%clk 0:00:53.9]} 24. Ne5 {[%clk 0:00:25]} 24... Bxe5 {[%clk 0:00:51.8]}
25. Qxe5 {[%clk 0:00:18.7]} 25... Qf6 {[%clk 0:00:48.9]} 26. Qe3 {[%clk
0:00:17.6]} 26... d4 {[%clk 0:00:46.2]} 27. Qa3+ {[%clk 0:00:17.1]} 27... Kg7
{[%clk 0:00:44.5]} 28. Qc5 {[%clk 0:00:16.1]} 28... Be8 {[%clk 0:00:38.4]} 29.
Re5 {[%clk 0:00:12.6]} 29... Rd8 {[%clk 0:00:35.5]} 30. Rfe1 {[%clk 0:00:13.3]}
30... Bf7 {[%clk 0:00:35.6]} 31. Qxa7 {[%clk 0:00:13.7]} 31... f4 {[%clk
0:00:26.3]} 32. Qa5 {[%clk 0:00:12.8]} 32... Kg6 {[%clk 0:00:22.1]} 33. a4
{[%clk 0:00:09.5]} 33... Nh6 {[%clk 0:00:21.5]} 34. Qa6 {[%clk 0:00:04.9]} 34...
d3 {[%clk 0:00:18.3]} 35. cxd3 {[%clk 0:00:04.1]} 35... Nf5 {[%clk 0:00:19]} 36.
Qb6 {[%clk 0:00:02.8]} 36... Nd4 {[%clk 0:00:19]} 37. R5e4 {[%clk 0:00:02.8]}
37... Rd5 {[%clk 0:00:18.3]} 38. a5 {[%clk 0:00:02]} 38... f3 {[%clk 0:00:18.7]}
39. a6 {[%clk 0:00:02.4]} 39... fxg2 {[%clk 0:00:18.8]} 40. Rxd4 {[%clk
0:00:02.6]} 40... Rxd4 {[%clk 0:00:18.7]} 41. a7 {[%clk 0:00:02.7]} 41... Ra4
{[%clk 0:00:18.1]} 42. Qb8 {[%clk 0:00:03]} 42... Rf4 {[%clk 0:00:10.2]} 43.
a8=Q {[%clk 0:00:03]} 43... Rxf2 {[%clk 0:00:10.9]} 44. Qa1 {[%clk 0:00:01.6]}
44... Qd4 {[%clk 0:00:09.3]} 45. Qg3 {[%clk 0:00:01.6]} 45... Re2+ {[%clk
0:00:07.6]} 0-1

[Event "Late-Titled-Tuesday-Blitz-March-26-2024"]
[Site "Chess.com"]
[Date "2024.03.26"]
[Round "11"]
[White "frequentblunders"]
[Black "Shiner22"]
[Result "1-0"]
[WhiteElo "2215"]
[BlackElo "2309"]
[TimeControl "180+1"]
[EndTime "16:04:37 PDT"]
[Termination "frequentblunders won on time"]

1. e4 {[%clk 0:01:48.7]} 1... c5 {[%clk 0:02:44.6]} 2. Nc3 {[%clk 0:01:49.6]}
2... Nc6 {[%clk 0:02:44.1]} 3. Nf3 {[%clk 0:01:50.5]} 3... e5 {[%clk 0:02:41.2]}
4. Bc4 {[%clk 0:01:49.8]} 4... Be7 {[%clk 0:02:41.5]} 5. O-O {[%clk 0:01:49.6]}
5... d6 {[%clk 0:02:37.7]} 6. d3 {[%clk 0:01:48.8]} 6... Nf6 {[%clk 0:02:37.9]}
7. Ng5 {[%clk 0:01:46.8]} 7... O-O {[%clk 0:02:37.8]} 8. f4 {[%clk 0:01:47.1]}
8... exf4 {[%clk 0:02:37.1]} 9. Bxf4 {[%clk 0:01:47.5]} 9... Bg4 {[%clk
0:02:36.1]} 10. Qe1 {[%clk 0:01:44.1]} 10... h6 {[%clk 0:02:31.9]} 11. Nf3
{[%clk 0:01:36.4]} 11... Nd4 {[%clk 0:02:11.8]} 12. Nxd4 {[%clk 0:01:35]} 12...
cxd4 {[%clk 0:02:11.5]} 13. Ne2 {[%clk 0:01:34.9]} 13... Qb6 {[%clk 0:02:05.9]}
14. Bb3 {[%clk 0:01:32.6]} 14... Be6 {[%clk 0:02:04.8]} 15. Qg3 {[%clk
0:01:15.2]} 15... Nh5 {[%clk 0:01:58.8]} 16. Qf3 {[%clk 0:01:15.5]} 16... Nxf4
{[%clk 0:01:57.7]} 17. Nxf4 {[%clk 0:01:16.4]} 17... Bxb3 {[%clk 0:01:45.8]} 18.
axb3 {[%clk 0:01:17.3]} 18... Bg5 {[%clk 0:01:29.4]} 19. Nd5 {[%clk 0:01:14.3]}
19... Qc5 {[%clk 0:01:21.8]} 20. Rf2 {[%clk 0:01:13.2]} 20... Be3 {[%clk
0:01:16.8]} 21. Nxe3 {[%clk 0:01:12.4]} 21... dxe3 {[%clk 0:01:17]} 22. Re2
{[%clk 0:01:13]} 22... Qd4 {[%clk 0:01:15.6]} 23. Rb1 {[%clk 0:01:09.2]} 23...
Rac8 {[%clk 0:01:13.3]} 24. Kf1 {[%clk 0:00:46.3]} 24... Rc7 {[%clk 0:01:09.4]}
25. Rc1 {[%clk 0:00:34.2]} 25... Qxb2 {[%clk 0:01:07.2]} 26. Qxe3 {[%clk
0:00:34.5]} 26... f5 {[%clk 0:01:01.7]} 27. Kg1 {[%clk 0:00:29.1]} 27... fxe4
{[%clk 0:00:59.5]} 28. dxe4 {[%clk 0:00:29.9]} 28... Qe5 {[%clk 0:00:37.6]} 29.
c4 {[%clk 0:00:27.8]} 29... Rcf7 {[%clk 0:00:36.8]} 30. h3 {[%clk 0:00:24.4]}
30... a5 {[%clk 0:00:31.9]} 31. Rd1 {[%clk 0:00:22.8]} 31... Rf6 {[%clk
0:00:19.3]} 32. Red2 {[%clk 0:00:22.3]} 32... Kh7 {[%clk 0:00:17.6]} 33. Rd5
{[%clk 0:00:20.9]} 33... Qb2 {[%clk 0:00:12.9]} 34. R1d2 {[%clk 0:00:19.2]}
34... Qc1+ {[%clk 0:00:10.7]} 35. Kh2 {[%clk 0:00:18.4]} 35... Rf1 {[%clk
0:00:08.7]} 36. Kg3 {[%clk 0:00:10.4]} 36... Re1 {[%clk 0:00:07]} 37. Qd3 {[%clk
0:00:08.3]} 37... Qa1 {[%clk 0:00:03.6]} 38. e5+ {[%clk 0:00:05.8]} 38... Kh8
{[%clk 0:00:02]} 39. exd6 {[%clk 0:00:06.1]} 39... Qf6 {[%clk 0:00:01.1]} 40.
Qd4 {[%clk 0:00:04.6]} 1-0

[Event "Late-Titled-Tuesday-Blitz-March-26-2024"]
[Site "Chess.com"]
[Date "2024.03.26"]
[Round "11"]
[White "egnfanclub"]
[Black "DinaBelenkaya"]
[Result "1-0"]
[WhiteElo "2381"]
[BlackElo "2473"]
[TimeControl "180+1"]
[EndTime "16:04:38 PDT"]
[Termination "egnfanclub won on time"]

1. e4 {[%clk 0:03:00.9]} 1... c6 {[%clk 0:03:00]} 2. d4 {[%clk 0:03:00.4]} 2...
d5 {[%clk 0:03:00.9]} 3. exd5 {[%clk 0:03:01.2]} 3... cxd5 {[%clk 0:03:01.4]} 4.
c4 {[%clk 0:03:01.8]} 4... Nc6 {[%clk 0:03:01.8]} 5. Nc3 {[%clk 0:03:02.6]} 5...
Nf6 {[%clk 0:03:01.8]} 6. Nf3 {[%clk 0:03:03.2]} 6... e6 {[%clk 0:03:01.4]} 7.
cxd5 {[%clk 0:03:02.1]} 7... Nxd5 {[%clk 0:03:01.1]} 8. Bd3 {[%clk 0:03:02.5]}
8... Bb4 {[%clk 0:03:00.4]} 9. Qc2 {[%clk 0:03:00.3]} 9... Ba5 {[%clk
0:02:54.2]} 10. a3 {[%clk 0:02:59.5]} 10... Nf6 {[%clk 0:02:47]} 11. O-O {[%clk
0:02:52.9]} 11... h6 {[%clk 0:02:42.2]} 12. Be3 {[%clk 0:02:10.9]} 12... O-O
{[%clk 0:02:38.2]} 13. Rad1 {[%clk 0:02:10.4]} 13... Ne7 {[%clk 0:02:38]} 14.
Ne5 {[%clk 0:02:08.4]} 14... Ned5 {[%clk 0:02:33.5]} 15. b4 {[%clk 0:01:59]}
15... Bb6 {[%clk 0:02:31.7]} 16. Ne4 {[%clk 0:01:58.4]} 16... Nxe4 {[%clk
0:02:29]} 17. Bxe4 {[%clk 0:01:59.3]} 17... f5 {[%clk 0:02:24.6]} 18. Bf3 {[%clk
0:01:53]} 18... Bd7 {[%clk 0:02:20.2]} 19. Bxd5 {[%clk 0:01:41.6]} 19... exd5
{[%clk 0:02:19.8]} 20. Qd2 {[%clk 0:01:38.2]} 20... Bb5 {[%clk 0:02:16.9]} 21.
Rfe1 {[%clk 0:01:37.6]} 21... Qh4 {[%clk 0:02:11.3]} 22. g3 {[%clk 0:01:36.6]}
22... Qh3 {[%clk 0:02:10.6]} 23. Ng6 {[%clk 0:01:30.8]} 23... Rf7 {[%clk
0:01:55.2]} 24. Nf4 {[%clk 0:01:29.4]} 24... Qg4 {[%clk 0:01:55.6]} 25. Kg2
{[%clk 0:01:19.3]} 25... Bc4 {[%clk 0:01:18.3]} 26. h4 {[%clk 0:01:17.6]} 26...
g5 {[%clk 0:00:48.5]} 27. f3 {[%clk 0:01:14.6]} 27... gxf4 {[%clk 0:00:46.8]}
28. fxg4 {[%clk 0:01:14.7]} 28... fxe3 {[%clk 0:00:47.1]} 29. Qxe3 {[%clk
0:01:12.3]} 29... fxg4 {[%clk 0:00:42.8]} 30. Qxh6 {[%clk 0:01:08.6]} 30... Raf8
{[%clk 0:00:35]} 31. Qg6+ {[%clk 0:01:02.6]} 31... Rg7 {[%clk 0:00:34.9]} 32.
Qe6+ {[%clk 0:00:59]} 32... Kh7 {[%clk 0:00:33.6]} 33. Re5 {[%clk 0:00:55.9]}
33... Rff7 {[%clk 0:00:23.2]} 34. Rh5+ {[%clk 0:00:54.2]} 34... Kg8 {[%clk
0:00:23.2]} 35. Rg5 {[%clk 0:00:46.2]} 35... Bd8 {[%clk 0:00:07.4]} 36. Rxg7+
{[%clk 0:00:29.4]} 36... Kxg7 {[%clk 0:00:06.4]} 37. h5 {[%clk 0:00:29.6]} 37...
Bf6 {[%clk 0:00:06.4]} 38. Qf5 {[%clk 0:00:24.2]} 38... Bb3 {[%clk 0:00:02.7]}
39. Qg6+ {[%clk 0:00:23.5]} 39... Kf8 {[%clk 0:00:02.8]} 40. Rd2 {[%clk
0:00:21.7]} 40... Bc4 {[%clk 0:00:01.9]} 41. h6 {[%clk 0:00:21.5]} 41... Bh8
{[%clk 0:00:01.4]} 42. Qd6+ {[%clk 0:00:20]} 42... Kg8 {[%clk 0:00:01.4]} 43.
Qg6+ {[%clk 0:00:18.5]} 43... Kf8 {[%clk 0:00:01.8]} 44. h7 {[%clk 0:00:15.9]}
44... Bf1+ {[%clk 0:00:01.7]} 45. Kg1 {[%clk 0:00:14.3]} 45... Bh3 {[%clk
0:00:02.6]} 46. Qg8+ {[%clk 0:00:13.3]} 46... Ke7 {[%clk 0:00:02.9]} 47. Re2+
{[%clk 0:00:12]} 47... Kf6 {[%clk 0:00:01.1]} 48. Qxh8+ {[%clk 0:00:11.9]} 48...
Kg6 {[%clk 0:00:01.3]} 49. Qg8+ {[%clk 0:00:11.1]} 1-0

[Event "Late-Titled-Tuesday-Blitz-March-26-2024"]
[Site "Chess.com"]
[Date "2024.03.26"]
[Round "11"]
[White "manitodeplomo"]
[Black "stollenmonster"]
[Result "0-1"]
[WhiteElo "2647"]
[BlackElo "2849"]
[TimeControl "180+1"]
[EndTime "16:04:42 PDT"]
[Termination "stollenmonster won by resignation"]

1. d4 {[%clk 0:03:00.9]} 1... Nf6 {[%clk 0:02:59.5]} 2. c4 {[%clk 0:03:00.5]}
2... e6 {[%clk 0:03:00.4]} 3. Nf3 {[%clk 0:02:57.8]} 3... d5 {[%clk 0:03:00.8]}
4. Nc3 {[%clk 0:02:57.5]} 4... Ne4 {[%clk 0:03:01.1]} 5. e3 {[%clk 0:02:50.5]}
5... Be7 {[%clk 0:03:01.3]} 6. Qc2 {[%clk 0:02:50.6]} 6... f5 {[%clk 0:03:01.3]}
7. Bd3 {[%clk 0:02:50.4]} 7... c6 {[%clk 0:03:01.6]} 8. O-O {[%clk 0:02:50.7]}
8... O-O {[%clk 0:03:02.2]} 9. Rb1 {[%clk 0:02:50.3]} 9... Bd7 {[%clk
0:03:02.3]} 10. b4 {[%clk 0:02:48]} 10... Be8 {[%clk 0:03:02.8]} 11. b5 {[%clk
0:02:37.1]} 11... Nd7 {[%clk 0:03:02.8]} 12. Ne2 {[%clk 0:02:12.7]} 12... Rc8
{[%clk 0:02:54.1]} 13. bxc6 {[%clk 0:02:10.9]} 13... bxc6 {[%clk 0:02:53.8]} 14.
Rb7 {[%clk 0:02:02.2]} 14... Bd6 {[%clk 0:02:41.6]} 15. Bb2 {[%clk 0:01:41.2]}
15... Rb8 {[%clk 0:02:24]} 16. Rxb8 {[%clk 0:01:20.8]} 16... Bxb8 {[%clk
0:02:24.5]} 17. Ba3 {[%clk 0:01:18.3]} 17... Rf7 {[%clk 0:02:11.5]} 18. Rb1
{[%clk 0:01:18.1]} 18... g5 {[%clk 0:01:53.2]} 19. cxd5 {[%clk 0:01:02.4]} 19...
cxd5 {[%clk 0:01:54.1]} 20. Bb5 {[%clk 0:01:00.1]} 20... Nb6 {[%clk 0:01:45.8]}
21. Bxe8 {[%clk 0:00:57.8]} 21... Qxe8 {[%clk 0:01:45.9]} 22. Ne5 {[%clk
0:00:47.8]} 22... Rc7 {[%clk 0:01:46]} 23. Qd1 {[%clk 0:00:33.1]} 23... Qc8
{[%clk 0:01:00.5]} 24. f3 {[%clk 0:00:29.8]} 24... Nc3 {[%clk 0:01:00.3]} 25.
Nxc3 {[%clk 0:00:30]} 25... Rxc3 {[%clk 0:01:01]} 26. Bc5 {[%clk 0:00:30.2]}
26... Bxe5 {[%clk 0:00:55.7]} 27. Bxb6 {[%clk 0:00:29.8]} 27... axb6 {[%clk
0:00:47.6]} 28. dxe5 {[%clk 0:00:29.5]} 28... Rxe3 {[%clk 0:00:47.9]} 29. Rxb6
{[%clk 0:00:28.8]} 29... Qc5 {[%clk 0:00:45.6]} 30. Rb8+ {[%clk 0:00:25]} 30...
Kg7 {[%clk 0:00:45.4]} 31. Rb7+ {[%clk 0:00:24.6]} 31... Kh6 {[%clk 0:00:43.5]}
32. Kh1 {[%clk 0:00:24.8]} 32... Qa5 {[%clk 0:00:21.4]} 33. Rb1 {[%clk
0:00:22.5]} 33... Qxa2 {[%clk 0:00:20]} 34. Qg1 {[%clk 0:00:17.2]} 34... Qe2
{[%clk 0:00:17.9]} 35. Rb6 {[%clk 0:00:15.4]} 35... Rxe5 {[%clk 0:00:16.9]} 36.
h4 {[%clk 0:00:15.7]} 36... Qe1 {[%clk 0:00:14.3]} 37. Qxe1 {[%clk 0:00:15.2]}
37... Rxe1+ {[%clk 0:00:14.3]} 38. Kh2 {[%clk 0:00:16.1]} 38... gxh4 {[%clk
0:00:14.7]} 39. Kh3 {[%clk 0:00:16.4]} 39... Kg5 {[%clk 0:00:14.8]} 40. Kh2
{[%clk 0:00:16.2]} 40... Kf4 {[%clk 0:00:11]} 41. Rb7 {[%clk 0:00:14.3]} 41...
h3 {[%clk 0:00:09]} 42. Rxh7 {[%clk 0:00:10.1]} 42... hxg2 {[%clk 0:00:08.6]}
43. Kxg2 {[%clk 0:00:11]} 43... d4 {[%clk 0:00:05.9]} 44. Kf2 {[%clk 0:00:10.1]}
44... Ra1 {[%clk 0:00:05.8]} 45. Ra7 {[%clk 0:00:05]} 45... Rxa7 {[%clk
0:00:05.1]} 0-1

[Event "Late-Titled-Tuesday-Blitz-March-26-2024"]
[Site "Chess.com"]
[Date "2024.03.26"]
[Round "11"]
[White "Matrix3x3a"]
[Black "janhelmer03"]
[Result "1-0"]
[WhiteElo "2610"]
[BlackElo "2430"]
[TimeControl "180+1"]
[EndTime "16:04:44 PDT"]
[Termination "Matrix3x3a won by resignation"]

1. d4 {[%clk 0:03:00.9]} 1... d5 {[%clk 0:02:55.9]} 2. c4 {[%clk 0:03:00.7]}
2... e6 {[%clk 0:02:55.5]} 3. Nf3 {[%clk 0:03:00.5]} 3... Nf6 {[%clk 0:02:56]}
4. g3 {[%clk 0:02:58.1]} 4... Bb4+ {[%clk 0:02:44.7]} 5. Bd2 {[%clk 0:02:57.6]}
5... Be7 {[%clk 0:02:43.9]} 6. Bg2 {[%clk 0:02:56.7]} 6... O-O {[%clk
0:02:43.8]} 7. O-O {[%clk 0:02:56.1]} 7... a6 {[%clk 0:02:40.1]} 8. Qc2 {[%clk
0:02:53.2]} 8... b5 {[%clk 0:02:33.8]} 9. cxd5 {[%clk 0:02:39.3]} 9... exd5
{[%clk 0:02:31.2]} 10. Ba5 {[%clk 0:02:37.3]} 10... Bd6 {[%clk 0:02:28.5]} 11.
Nbd2 {[%clk 0:02:30.5]} 11... Qe7 {[%clk 0:02:26]} 12. Rac1 {[%clk 0:02:25.7]}
12... c6 {[%clk 0:02:24.8]} 13. e3 {[%clk 0:02:14]} 13... Bg4 {[%clk 0:02:17.9]}
14. Nb3 {[%clk 0:01:48.1]} 14... Ne4 {[%clk 0:02:13.1]} 15. Ne1 {[%clk
0:01:44.5]} 15... Bf5 {[%clk 0:02:10.9]} 16. Nd3 {[%clk 0:01:40.1]} 16... Ng5
{[%clk 0:01:55.8]} 17. Qe2 {[%clk 0:01:26.3]} 17... Be4 {[%clk 0:01:52.5]} 18.
f3 {[%clk 0:01:23.8]} 18... Bf5 {[%clk 0:01:48.3]} 19. Nbc5 {[%clk 0:01:18.9]}
19... Re8 {[%clk 0:01:46.6]} 20. Rfe1 {[%clk 0:01:13.8]} 20... Qf6 {[%clk
0:01:37.3]} 21. Nf2 {[%clk 0:00:56.9]} 21... Ne6 {[%clk 0:01:18]} 22. Nxe6
{[%clk 0:00:51.2]} 22... Qxe6 {[%clk 0:01:18.9]} 23. Qd2 {[%clk 0:00:50.7]}
23... Qh6 {[%clk 0:00:45.4]} 24. a3 {[%clk 0:00:41.8]} 24... Bd7 {[%clk
0:00:35.6]} 25. Bb4 {[%clk 0:00:36.2]} 25... Bc7 {[%clk 0:00:31.4]} 26. Nd3
{[%clk 0:00:35.9]} 26... a5 {[%clk 0:00:27.2]} 27. Bc3 {[%clk 0:00:33.1]} 27...
Na6 {[%clk 0:00:26.5]} 28. Bxa5 {[%clk 0:00:30.1]} 28... Bxa5 {[%clk 0:00:25.7]}
29. Qxa5 {[%clk 0:00:25.3]} 29... Rxe3 {[%clk 0:00:22.8]} 30. Qd2 {[%clk
0:00:17.4]} 30... Rxe1+ {[%clk 0:00:19.7]} 31. Qxe1 {[%clk 0:00:18.3]} 31... Nc7
{[%clk 0:00:14.5]} 32. Ne5 {[%clk 0:00:16.2]} 32... Re8 {[%clk 0:00:12.9]} 33.
f4 {[%clk 0:00:14]} 33... f6 {[%clk 0:00:11.5]} 34. Qa5 {[%clk 0:00:13.3]} 34...
fxe5 {[%clk 0:00:08.5]} 35. Qxc7 {[%clk 0:00:13.8]} 35... Bg4 {[%clk 0:00:02.2]}
36. dxe5 {[%clk 0:00:12.3]} 36... Qg6 {[%clk 0:00:01.4]} 37. Qxc6 {[%clk
0:00:12]} 37... Qxc6 {[%clk 0:00:01]} 38. Rxc6 {[%clk 0:00:11.4]} 38... Rd8
{[%clk 0:00:01.9]} 39. Rd6 {[%clk 0:00:11.5]} 39... Rxd6 {[%clk 0:00:02]} 40.
exd6 {[%clk 0:00:12.4]} 40... Kf7 {[%clk 0:00:02.7]} 41. Bxd5+ {[%clk
0:00:11.6]} 41... Ke8 {[%clk 0:00:03.6]} 42. Bc6+ {[%clk 0:00:11.3]} 42... Bd7
{[%clk 0:00:04]} 43. Bxd7+ {[%clk 0:00:11.2]} 43... Kxd7 {[%clk 0:00:04.9]} 44.
b3 {[%clk 0:00:11.2]} 44... Kxd6 {[%clk 0:00:05.8]} 45. a4 {[%clk 0:00:11.4]}
45... bxa4 {[%clk 0:00:03.8]} 46. bxa4 {[%clk 0:00:12.3]} 46... Kc5 {[%clk
0:00:04.5]} 47. Kf2 {[%clk 0:00:12.9]} 47... Kb4 {[%clk 0:00:05.1]} 48. Kf3
{[%clk 0:00:13.8]} 48... Kxa4 {[%clk 0:00:05.8]} 49. Ke4 {[%clk 0:00:14.5]}
49... Kb5 {[%clk 0:00:06.7]} 50. Ke5 {[%clk 0:00:14.7]} 50... Kc6 {[%clk
0:00:07.6]} 51. Ke6 {[%clk 0:00:15]} 51... Kc5 {[%clk 0:00:08]} 52. Kf7 {[%clk
0:00:15.6]} 52... Kd4 {[%clk 0:00:06.5]} 53. Kxg7 {[%clk 0:00:15.9]} 53... h5
{[%clk 0:00:07.4]} 54. Kg6 {[%clk 0:00:16]} 54... h4 {[%clk 0:00:07.9]} 55. Kg5
{[%clk 0:00:15.7]} 55... Ke4 {[%clk 0:00:08.8]} 56. Kxh4 {[%clk 0:00:15.7]}
56... Kf5 {[%clk 0:00:09.5]} 57. Kh3 {[%clk 0:00:15.4]} 1-0

[Event "Late-Titled-Tuesday-Blitz-March-26-2024"]
[Site "Chess.com"]
[Date "2024.03.26"]
[Round "11"]
[White "KetiTsatsalashvili"]
[Black "TokChess"]
[Result "0-1"]
[WhiteElo "2456"]
[BlackElo "2610"]
[TimeControl "180+1"]
[EndTime "16:04:49 PDT"]
[Termination "TokChess won by checkmate"]

1. d4 {[%clk 0:03:00.9]} 1... Nf6 {[%clk 0:02:59.9]} 2. Nf3 {[%clk 0:03:01.1]}
2... g6 {[%clk 0:03:00.5]} 3. c4 {[%clk 0:03:00.6]} 3... Bg7 {[%clk 0:03:01.4]}
4. Nc3 {[%clk 0:03:00.4]} 4... d5 {[%clk 0:03:02.2]} 5. cxd5 {[%clk 0:02:59.7]}
5... Nxd5 {[%clk 0:03:03.1]} 6. e4 {[%clk 0:03:00.2]} 6... Nxc3 {[%clk
0:03:03.6]} 7. bxc3 {[%clk 0:03:01.1]} 7... c5 {[%clk 0:03:04.1]} 8. Be2 {[%clk
0:03:00.5]} 8... O-O {[%clk 0:03:03.2]} 9. Rb1 {[%clk 0:03:00]} 9... b6 {[%clk
0:03:00.5]} 10. O-O {[%clk 0:02:57.8]} 10... Bb7 {[%clk 0:02:58.2]} 11. Qd3
{[%clk 0:02:54.7]} 11... Ba6 {[%clk 0:02:48.2]} 12. Qc2 {[%clk 0:02:54.5]} 12...
Bxe2 {[%clk 0:02:49.1]} 13. Qxe2 {[%clk 0:02:55.2]} 13... Qc7 {[%clk 0:02:39.2]}
14. Be3 {[%clk 0:02:51.6]} 14... Nd7 {[%clk 0:02:34.9]} 15. h4 {[%clk
0:02:43.4]} 15... Rac8 {[%clk 0:02:29.4]} 16. Rbc1 {[%clk 0:02:34.8]} 16... Nf6
{[%clk 0:02:24.6]} 17. e5 {[%clk 0:02:29.3]} 17... Nd5 {[%clk 0:02:23.7]} 18.
Bd2 {[%clk 0:02:27.4]} 18... cxd4 {[%clk 0:02:22]} 19. cxd4 {[%clk 0:02:26.9]}
19... Qd7 {[%clk 0:02:21.9]} 20. h5 {[%clk 0:02:15.6]} 20... gxh5 {[%clk
0:02:03.7]} 21. Nh2 {[%clk 0:02:00]} 21... Qf5 {[%clk 0:01:56.5]} 22. Rfe1
{[%clk 0:01:44.7]} 22... e6 {[%clk 0:01:54]} 23. Nf1 {[%clk 0:01:43.1]} 23...
Qg4 {[%clk 0:01:47.5]} 24. Ng3 {[%clk 0:01:36.3]} 24... Qxe2 {[%clk 0:01:44]}
25. Rxe2 {[%clk 0:01:36.1]} 25... Rxc1+ {[%clk 0:01:43.5]} 26. Bxc1 {[%clk
0:01:37]} 26... Rc8 {[%clk 0:01:43.8]} 27. Re1 {[%clk 0:01:33.3]} 27... Rc4
{[%clk 0:01:33.6]} 28. Be3 {[%clk 0:01:22.5]} 28... h4 {[%clk 0:00:59.1]} 29.
Ne4 {[%clk 0:01:21.2]} 29... Rc2 {[%clk 0:00:51.9]} 30. a3 {[%clk 0:01:13]}
30... Bf8 {[%clk 0:00:40.5]} 31. Bg5 {[%clk 0:01:10.1]} 31... Rc4 {[%clk
0:00:30]} 32. Nd6 {[%clk 0:00:55.7]} 32... Rxd4 {[%clk 0:00:24.9]} 33. Bxh4
{[%clk 0:00:51.8]} 33... Rxh4 {[%clk 0:00:23.7]} 34. Ne4 {[%clk 0:00:43.3]}
34... Bxa3 {[%clk 0:00:19.5]} 35. g3 {[%clk 0:00:39]} 35... Rxe4 {[%clk
0:00:16.2]} 36. Rxe4 {[%clk 0:00:38.6]} 36... Bc5 {[%clk 0:00:16.5]} 37. Kg2
{[%clk 0:00:37.6]} 37... a5 {[%clk 0:00:16.9]} 38. f4 {[%clk 0:00:37.4]} 38...
b5 {[%clk 0:00:16.6]} 39. g4 {[%clk 0:00:36.8]} 39... a4 {[%clk 0:00:16.8]} 40.
f5 {[%clk 0:00:37.2]} 40... a3 {[%clk 0:00:16.1]} 41. Re1 {[%clk 0:00:30.9]}
41... a2 {[%clk 0:00:12.7]} 42. Rc1 {[%clk 0:00:31.2]} 42... Kg7 {[%clk
0:00:07.6]} 43. Kf3 {[%clk 0:00:16.5]} 43... b4 {[%clk 0:00:04.8]} 44. Ke4
{[%clk 0:00:16.1]} 44... b3 {[%clk 0:00:04.7]} 45. f6+ {[%clk 0:00:15]} 45...
Kg6 {[%clk 0:00:04.8]} 46. g5 {[%clk 0:00:15.4]} 46... b2 {[%clk 0:00:04.4]} 47.
Rc2 {[%clk 0:00:13.3]} 47... b1=Q {[%clk 0:00:03.8]} 48. Kd3 {[%clk 0:00:13.7]}
48... Qxc2+ {[%clk 0:00:03.6]} 49. Kxc2 {[%clk 0:00:13.9]} 49... Kxg5 {[%clk
0:00:03.9]} 50. Kd3 {[%clk 0:00:14.8]} 50... Kf5 {[%clk 0:00:04.3]} 51. Kc4
{[%clk 0:00:14.9]} 51... Kxe5 {[%clk 0:00:04.4]} 52. Kxc5 {[%clk 0:00:15.4]}
52... a1=Q {[%clk 0:00:04.4]} 53. Kc6 {[%clk 0:00:15.7]} 53... Qc3+ {[%clk
0:00:04.7]} 54. Kd7 {[%clk 0:00:16.1]} 54... Kxf6 {[%clk 0:00:04.7]} 55. Ke8
{[%clk 0:00:16.3]} 55... Qc7 {[%clk 0:00:04.8]} 56. Kf8 {[%clk 0:00:16.1]} 56...
Qd8# {[%clk 0:00:05.7]} 0-1